Cogmind - Beta 16 @@@ ROGUE MODE // 2025.12.02 @ 02:10:49 Player: GGOBC-006 Result: Destroyed by Optimus with Helical Railgun Performance ------------- Evolutions (0) 0 Regions Visited (4) 800 Robots Destroyed (53) 265 Value Destroyed (795) 795 Prototype IDs (17) 340 Alien Tech Used (0) 0 Bonus (420) 420 TOTAL SCORE: 2620 Bonus ------- Follower Combat Kills 120 Registered with UFD 300 Cogmind --------- Core Integrity 0/250 Matter 265/300 Energy 19/100 System Corruption 9% Temperature Cool (0) Movement Core (100) Ox1 Location -7/Scraptown Parts ------- > --- POWER (1) -------- (None) > --- PROPULSION (2) --- (None) > --- UTILITY (2) ------ A0-MCA's Component Scanner > --- WEAPON (2) ------- Companion Sword > --- INVENTORY (5) ---- Scrap Suit Deep Structural Scanner Sensor Array Mining Laser Peak State ------------ > --- POWER ------------ Ion Engine > --- PROPULSION ------- Hover Unit Hover Unit > --- UTILITY ---------- Experimental Signal Interpreter A0-MCA's Component Scanner > --- WEAPON ----------- Mining Laser Companion Sword > --- INVENTORY -------- Deep Structural Scanner Sensor Array Beam Rifle [Rating: 27] Favorites ----------- Power Ion Engine Engine Ion Engine Power Core Light Nuclear Core Propulsion Hover Unit Leg Aluminum Leg Wheel Wheel Hover Unit Hover Unit Flight Unit Flight Unit Utility Sensor Array Device Sensor Array Processor Signal Interpreter Weapon Autogun Energy Gun Beam Rifle Ballistic Gun Autogun Launcher Grenade Launcher Special Weapon CPS Tube Slashing Weapon Companion Sword Build | -11 -10 -10 -10 -7 ------- Run | Yrd Mat Min Sub Scr Slots Evolved . | . . . . . Power . | . . . . . Propulsion . | . . . . . Utility . | . . . . . Weapon . | . . . . . Parts Attached 39 | 7 21 3 . 8 Power 6 | 1 2 2 . 1 Engine 5 | 1 2 1 . 1 Core 1 | . . 1 . . Reactor . | . . . . . Propulsion 9 | 2 7 . . . Treads . | . . . . . Leg 2 | 2 . . . . Wheel 2 | . 2 . . . Hover 3 | . 3 . . . Flight 2 | . 2 . . . Utility 11 | 2 6 . . 3 Device 7 | 2 4 . . 1 Storage . | . . . . . Processor 4 | . 2 . . 2 Hackware . | . . . . . Protection . | . . . . . Artifact . | . . . . . Weapon 13 | 2 6 1 . 4 Energy Gun 2 | . . . . 2 Energy Cannon . | . . . . . Ballistic Gun 6 | 2 4 . . . Ballistic Cannon . | . . . . . Launcher 1 | . . 1 . . Special Weapon 3 | . 2 . . 1 Impact Weapon . | . . . . . Slashing Weapon 1 | . . . . 1 Piercing Weapon . | . . . . . Special Melee Weapon . | . . . . . Unidentified Prototypes 1 | . . . . 1 Parts Lost 6 | . 1 . . 5 Power 1 | . . . . 1 Propulsion 2 | . . . . 2 Utility 2 | . 1 . . 1 Weapon 1 | . . . . 1 Highest Loss Streak 3 | . 1 . . 3 To Critical Strikes . | . . . . . Average Backups 4 | 2 4 5 5 4 Power . | . 1 1 1 . Propulsion . | 1 . . . . Utility . | . . . . 1 Weapon 2 | . 2 3 3 2 Tool/Special . | . . . . . Unused Backups 6 | 1 1 2 . 2 Power 2 | . 1 1 . . Propulsion 1 | 1 . . . . Utility 1 | . . . . 1 Weapon 1 | . . 1 . . Tool/Special 1 | . . . . 1 Average Slot Usage (%) 86 | . 93 100 100 75 Engine 8 | . 14 2 . 7 Core 5 | . . 11 14 5 Leg 1 | . 4 . . . Hover 23 | . 14 28 28 27 Flight 1 | . 5 . . . Device 15 | . 21 14 14 12 Processor 10 | . 1 14 14 14 Ballistic Gun 11 | . 26 18 14 . Launcher 2 | . . 9 14 . Special Weapon 3 | . 1 . . 5 Peak Build Rating 27 | 9 13 11 10 27 Average Rating 11 | 5 10 10 10 13 On Entrance 7 | . 9 9 10 10 Avg Prop Armor Cover (%) . | . . . . . Naked Turns . | . . . . . Heaviest Build 13 | 9 13 12 12 10 Greatest Support 20 | 20 20 12 12 12 Greatest Overweight (x) 2 | 1 2 . . 1 Average Overweight (x) . | . . . . . Largest Inventory Capacity 5 | 5 5 5 5 5 Average Capacity 5 | 5 5 5 5 5 Most Carried 5 | 4 5 5 5 5 Average Carried 4 | 2 4 4 5 4 Final Capacity 5 | 5 5 5 5 5 Final Carried 5 | 4 5 5 5 5 Class Distribution -------------------- 96% | Mutant 3% | Scavenger-Mutant Dominant Class ---------------- Mutant | -10/Materials Mutant | -10/Mines Mutant | -10/Subcaves Mutant | -7/Scraptown Resources | -11 -10 -10 -10 -7 ----------- Run | Yrd Mat Min Sub Scr Matter Collected 1839 | 306 983 257 233 60 Remotely 58 | 26 32 . . . Salvage Created 1467 | 163 1001 248 30 25 Parts 123 | 14 83 17 5 4 Haulers Intercepted 2 | . 2 . . . Recyclers Shooed . | . . . . . Parts Field Recycled . | . . . . . Retrieved Matter . | . . . . . Parts Self-Destructed 6 | . . . 2 4 Prevented . | . . . . . Parts Restored . | . . . . . Kills | -11 -10 -10 -10 -7 ------- Run | Yrd Mat Min Sub Scr Combat Hostiles Destroyed 20 | . 15 4 1 . Guns 19 | . 15 4 . . AOE 1 | . . . 1 . Classes Destroyed 8 | 3 5 . . . Worker 13 | 2 10 1 . . Builder 6 | . 5 1 . . Tunneler 5 | 4 . 1 . . Hauler 2 | . 2 . . . Recycler 4 | 1 2 1 . . Watcher 3 | . 3 . . . Swarmer 6 | . 6 . . . Grunt 14 | . 9 4 1 . Best Kill Streak 7 | 5 7 3 1 . Combat Bots Only 6 | . 6 2 1 . Max Kills in Single Turn 1 | 1 1 1 1 . Gunslinging . | . . . . . Exploded 1 | . . . 1 . Melee . | . . . . . Uniques/NPCs Destroyed . | . . . . . Combat | -11 -10 -10 -10 -7 -------- Run | Yrd Mat Min Sub Scr Hostile Shots Fired 118 | . 77 12 10 19 Missed 32 | . 20 5 3 4 Hits 86 | . 57 7 7 15 Projectile 86 | . 57 7 7 15 Critical Strikes 2 | . . . 1 1 Damage Taken 1312 | . 627 121 91 473 Core 280 | . 91 54 23 112 Absorbed by Shields . | . . . . . Core Remaining (%) 100 | 100 . . . . Volleys Fired 228 | 18 122 37 12 39 Largest 2 | 2 2 2 1 1 Hottest 100 | 40 100 46 30 100 Shots Fired 366 | 36 227 52 12 39 Gun 284 | 36 210 30 . 8 Cannon . | . . . . . Launcher 34 | . . 22 12 . Special 48 | . 17 . . 31 Kinetic 276 | 36 210 30 . . Thermal 54 | . 17 . . 37 Explosive 34 | . . 22 12 . Electromagnetic . | . . . . . Robot Hit Streak 9 | 7 9 8 3 7 Robot Miss Streak 4 | 2 4 3 . 1 Penetration Max . | . . . . . Secondary Targets 4 | . 4 . . . Max Gunslinging Chain 1 | . 1 . . . Shots Hit Robots 162 | 25 105 20 3 9 Core Hits 84 | 14 48 13 8 1 Critical Kills . | . . . . . Critical Parts Destroyed 2 | . 2 . . . Critical Strikes 2 | . 2 . . . Destroy 2 | . 2 . . . Melee Attacks 4 | . . . . 4 Impact . | . . . . . Slashing 4 | . . . . 4 Piercing . | . . . . . Sneak Attacks . | . . . . . Combat Hostiles . | . . . . . Follow-up Attacks . | . . . . . Damage Inflicted 2777 | 201 1352 385 685 154 Guns 1853 | 201 1304 275 . 73 Cannons . | . . . . . Explosions 795 | . . 110 685 . Melee 81 | . . . . 81 Ramming . | . . . . . Kinetic 1780 | 201 1304 275 . . Thermal 121 | . 48 . . 73 Explosive 795 | . . 110 685 . Electromagnetic . | . . . . . Impact . | . . . . . Slashing 81 | . . . . 81 Piercing . | . . . . . Highest Corruption 9 | . . . . 9 Average Corruption 9 | . . . . 9 Corruption Purged . | . . . . . Corruption Blocked . | . . . . . Effects 5 | . . . . 5 Message Errors 2 | . . . . 2 Matter Fused 1 | . . . . 1 Energy Discharges 1 | . . . . 1 Data Loss (minor) 1 | . . . . 1 Overload Shots . | . . . . . Overflow Damage 14 | . . . . 14 Projectiles . | . . . . . Explosions . | . . . . . Melee 14 | . . . . 14 Knockbacks . | . . . . . Impact . | . . . . . Kinetic . | . . . . . Secondary . | . . . . . Self-Inflicted Damage 26 | . . 26 . . Shots 2 | . . 2 . . Rammed . | . . . . . Targets Rammed . | . . . . . Kicked . | . . . . . Crushed . | . . . . . Highest Temperature 168 | . 12 29 6 168 Average Temperature 38 | . 6 12 6 49 Received Heat Transfer 387 | . 264 54 69 . Siege Activations . | . . . . . Martial Activations . | . . . . . Shielding Activations . | . . . . . Robots Disrupted . | . . . . . Combat Hostiles . | . . . . . Robots Corrupted . | . . . . . Combat Hostiles . | . . . . . Parts Fried . | . . . . . Impact Corruptions . | . . . . . Robots Melted . | . . . . . Combat Hostiles . | . . . . . Parts Melted . | . . . . . Heat Transferred 257 | . 100 . . 157 Parts Sabotaged . | . . . . . Parts Stolen . | . . . . . Parts Stripped . | . . . . . Power Chain Reactions . | . . . . . Alert | -11 -10 -10 -10 -7 ------- Run | Yrd Mat Min Sub Scr Maximum Alert Level . | . . . . . Low Security (%) 100 | 100 100 100 . . Level 1 . | . . . . . Level 2 . | . . . . . Level 3 . | . . . . . Level 4 . | . . . . . Level 5 . | . . . . . High Security . | . . . . . Max Security . | . . . . . Peak Influence 175 | 10 175 52 . . Initial 8 | . 3 8 . . Average 35 | 2 47 18 . . Influence Increases 995 | 35 626 276 53 5 Destroy 0b10 Robot/C 480 | . 300 140 40 . Destroy 0b10 Robot/NC 170 | 35 110 20 . 5 Destroy Leader 120 | . 70 40 10 . Allied During Kill 18 | . . 15 3 . Successful Hack 46 | . 46 . . . Select Force Hacks 30 | . 30 . . . Disable Machine 60 | . 60 . . . Destroy Structure 71 | . 10 61 . . Influence Decreases 995 | 30 609 298 53 5 Entered New Map 16 | . 2 14 . . Time Decay 796 | 30 442 266 53 5 Lost Part 10 | . 10 . . . Lost Ally 18 | . . 18 . . Purge Threat 155 | . 155 . . . Squads Dispatched 3 | . 3 . . . Investigation 2 | . 2 . . . Extermination . | . . . . . Reinforcement 1 | . 1 . . . Assault . | . . . . . Garrison . | . . . . . Intercept . | . . . . . Searches Triggered . | . . . . . Construction Impeded . | . . . . . Haulers Reinforced . | . . . . . Active Scanning Responses . | . . . . . Cargo Convoy Interrupts . | . . . . . Stealth | -11 -10 -10 -10 -7 --------- Run | Yrd Mat Min Sub Scr Distress Signals 1 | . 1 . . . Communications Jammed . | . . . . . Distress Signals . | . . . . . Times Spotted 32 | . 21 7 2 2 Peak Tracking Total 14 | . 6 2 2 14 Tactical Retreats . | . . . . . Traps | -11 -10 -10 -10 -7 ------- Run | Yrd Mat Min Sub Scr Traps Triggered 2 | . 2 . . . Indirectly . | . . . . . Trap Hack Attempts . | . . . . . Triggered . | . . . . . Disarmed . | . . . . . Reprogrammed . | . . . . . Reused . | . . . . . Traps Extracted . | . . . . . Installed . | . . . . . Triggered . | . . . . . Machines | -11 -10 -10 -10 -7 ---------- Run | Yrd Mat Min Sub Scr Machines Disabled 5 | . 4 . . 1 Max in Single Turn 1 | . 1 . . 1 Machines Repaired . | . . . . . Machines Dismantled . | . . . . . Machines Sabotaged . | . . . . . Overloaded Fab Kills . | . . . . . Hacking | -11 -10 -10 -10 -7 --------- Run | Yrd Mat Min Sub Scr Machines Accessed 16 | . 8 1 1 6 Terminals 6 | . 6 . . . Fabricators . | . . . . . Repair Stations . | . . . . . Recycling Units 2 | . 2 . . . Scanalyzers . | . . . . . Garrison Access . | . . . . . Total Hacks 66 | . 23 1 5 37 Successful 55 | . 12 1 5 37 Failed 11 | . 11 . . . Catastrophic 4 | . 4 . . . Database Lockouts . | . . . . . Manual 21 | . 20 . . 1 Terminals 16 | . 16 . . . Fabricators . | . . . . . Repair Stations . | . . . . . Recycling Units 7 | . 7 . . . Scanalyzers . | . . . . . Garrison Access . | . . . . . Terminal Hacks 47 | . 4 1 5 37 Record 40 | . . . 5 35 Robot Analysis 1 | . 1 . . . Open Door 2 | . . 1 . 1 Unreport Threat 2 | . 2 . . . Recall Investigation 1 | . 1 . . . Proto ID Catalog 1 | . . . . 1 Fabricator Hacks . | . . . . . Repair Station Hacks . | . . . . . Recycling Unit Hacks . | . . . . . Scanalyzer . | . . . . . Garrison Access Hacks . | . . . . . Unauthorized Hacks 4 | . 4 . . . Terminals 3 | . 3 . . . Botnet 3 | . 3 . . . Fabricators . | . . . . . Repair Stations . | . . . . . Recycling Units 1 | . 1 . . . Tunnel 1 | . 1 . . . Scanalyzers . | . . . . . Garrison Access . | . . . . . Data Cores Recovered . | . . . . . Used . | . . . . . Hacking Detections 7 | . 7 . . . Full Trace Events 2 | . 2 . . . Feedback Events . | . . . . . Feedback Blocked . | . . . . . Robot Schematics Acquired . | . . . . . Robots Built . | . . . . . Authchips . | . . . . . Time . | . . . . . Total Robot Build Rating . | . . . . . Part Schematics Acquired . | . . . . . Parts Built . | . . . . . Authchips . | . . . . . Time . | . . . . . Total Part Build Rating . | . . . . . Part Studies Acquired . | . . . . . Parts Repaired . | . . . . . Time . | . . . . . Parts Recycled . | . . . . . Recycled Matter . | . . . . . Retrieved Matter . | . . . . . Retrieved Components . | . . . . . Parts Scanalyzed . | . . . . . Part Schematics Acquired . | . . . . . Parts Damaged . | . . . . . Bothacking | -11 -10 -10 -10 -7 ------------ Run | Yrd Mat Min Sub Scr Used RIF Installer . | . . . . . Robots Hacked . | . . . . . Non-combat . | . . . . . Combat . | . . . . . Robot Hacks Applied . | . . . . . Relay Couplers Released . | . . . . . Fabnet Peak Effective % . | . . . . . Robots Rewired . | . . . . . Allies Hacked . | . . . . . Hacks Repelled . | . . . . . Allies | -11 -10 -10 -10 -7 -------- Run | Yrd Mat Min Sub Scr Total Allies 3 | . . 3 . . Largest Group 3 | . . 3 1 1 Highest-Rated Group 40 | . . 40 16 16 Highest-Rated Ally 16 | . . 16 16 16 Total Orders . | . . . . . Ally Attacks 26 | . . 21 1 4 Total Damage 288 | . . 224 13 51 Kills 4 | . . 3 1 . Allies Corrupted . | . . . . . Allies Melted . | . . . . . Intel | -11 -10 -10 -10 -7 ------- Run | Yrd Mat Min Sub Scr Active Infowar (turns) 4155 | 38 920 804 255 2138 Optics 82 | . 82 . . . Sensors 2499 | . 247 804 255 1193 Terrain 629 | 38 591 . . . Structural 945 | . . . . 945 Robot Analysis Total 1 | . 1 . . . Derelict Logs Recovered 3 | . . 2 1 . Drone Launches . | . . . . . Drone Recoveries . | . . . . . Exploration | -11 -10 -10 -10 -7 ------------- Run | Yrd Mat Min Sub Scr Turns Passed 5080 | 139 1476 804 255 2406 Spaces Moved 5640 | 66 1280 1053 364 2877 Core 4 | 4 . . . . Treads . | . . . . . Legs 206 | 62 144 . . . Wheels 105 | . 105 . . . Hover 5108 | . 814 1053 364 2877 Flight 217 | . 217 . . . Fastest Speed 50 | 50 56 56 56 56 Average Speed 62 | 116 83 56 56 56 Slowest Speed 200 | 120 200 56 56 120 Overloaded Moves . | . . . . . Propulsion Burnouts . | . . . . . Robots Hopped . | . . . . . Potential Cave-ins 16 | . 3 . . 13 Cave-ins Triggered 1 | . . . . 1 Exploration Rate (%) 62 | 4 90 100 25 95 Regions Visited 4 Branch Regions 3 Pre-discovered Areas 6 | . 1 1 1 3 Known Exits Taken 3 | . 1 1 1 . Unknown Exits Taken 1 | 1 . . . . Scrap Searched 8 | . . 3 . 5 Spaces Dug 117 | . 10 87 . 20 Terrain Destroyed 236 | . 11 173 32 20 Melee . | . . . . . Projectile 31 | . 11 . . 20 AOE 205 | . . 173 32 . Terrain Rammed . | . . . . . Walls Destroyed . | . . . . . Machines Disabled . | . . . . . Actions | -11 -10 -10 -10 -7 --------- Run | Yrd Mat Min Sub Scr Total 6758 | 96 1468 1224 402 3568 Wait 783 | . 11 122 27 623 Move 5635 | 65 1279 1052 363 2876 Hop . | . . . . . Pick Up 17 | 5 3 4 . 5 Fast Attach 28 | 7 17 1 . 3 Attach 3 | . . . . 3 Detach 1 | . . . . 1 Swap 21 | . 14 2 . 5 Drop 37 | 1 22 6 . 8 Fire 228 | 18 122 37 12 39 Melee 4 | . . . . 4 Ram . | . . . . . Kick . | . . . . . Crush . | . . . . . Escape Stasis 1 | . . . . 1 Rewire . | . . . . . Trap . | . . . . . Miscellaneous . | . . . . . Route ------- -11/Scrapyard -10/Materials (discovered 4 exits: *Mat x3 / *Min) -10/Mines (discovered 3 exits: *Mat x2 / *Sub) -10/Subcaves (discovered 4 exits: *Mat x2 / Rec / *Scr) -7/Scraptown (discovered 2 exits: *Fac x2) History --------- Turn | Location | Event 14 | -11/Scrapyard | Discovered new exit (range 15) 140 | -11/Scrapyard | Entered Materials 308 | -10/Materials | Build established: Mutant 413 | -10/Materials | Discovered new exit (range 4) 486 | -10/Materials | Discovered new exit (range 13) 722 | -10/Materials | Discovered new exit (range 14) 968 | -10/Materials | Discovered new exit (range 5) 1600 | -10/Materials | Identified exit to Materials 1616 | -10/Materials | Identified exit to Mines 1616 | -10/Materials | Entered Mines 1623 | -10/Mines | Met a Derelict bent on vengeance 1652 | -10/Mines | Assisted by bots powering up and referring to "LRC-V3" 1714 | -10/Mines | Core integrity fell below 50% 1826 | -10/Mines | Discovered exit to Materials (range 8) 1888 | -10/Mines | Learned location of Zion (-7) 1891 | -10/Mines | Found the Drone Emporium 2387 | -10/Mines | Discovered new exit (range 8) 2395 | -10/Mines | Identified exit to Subcaves 2420 | -10/Mines | Entered Subcaves 2420 | -10/Subcaves | Accompanied by 1 ally 2421 | -10/Subcaves | Approached by a straggling Scientist 2433 | -10/Subcaves | Discovered new exit (range 11) 2438 | -10/Subcaves | Identified exit to Materials 2450 | -10/Subcaves | Visited Clippyterm 2452 | -10/Subcaves | Identified exit to Recycling 2452 | -10/Subcaves | Learned Factory trap positions 2525 | -10/Subcaves | Discovered exit to Materials (range 15) 2542 | -10/Subcaves | Scientist uncovered a shortcut to Scraptown 2578 | -10/Subcaves | Met a Zionite searching for "candidates" 2652 | -10/Subcaves | Identified exit to Scraptown 2675 | -10/Subcaves | Entered Scraptown 2675 | -7/Scraptown | Accompanied by 1 ally 2754 | -7/Scraptown | Discovered new exit (range 13) 2759 | -7/Scraptown | Identified exit to Factory 2812 | -7/Scraptown | Visited Assassins FH 2834 | -7/Scraptown | Visited Red Mages 2861 | -7/Scraptown | Visited TADAMA 2877 | -7/Scraptown | Visited Comm Corps 3259 | -7/Scraptown | Visited Science Testing Area 3293 | -7/Scraptown | Visited Cave Peace 3372 | -7/Scraptown | Visited UFD Registry 3385 | -7/Scraptown | Registered with UFD as "Fiberslicer" 3424 | -7/Scraptown | Visited Science Guys 3445 | -7/Scraptown | Visited Sword Containment 3459 | -7/Scraptown | Found Prototype Slashing Weapon 3476 | -7/Scraptown | Visited Curators Association 3617 | -7/Scraptown | Visited Scrap Suit Storage 3646 | -7/Scraptown | Visited Infowarlord's Domain 3651 | -7/Scraptown | Found Exp. Signal Interpreter 3663 | -7/Scraptown | Visited A0-MCA Data Center 3667 | -7/Scraptown | Given a B- rating by A0-MCA 3672 | -7/Scraptown | Found A0-MCA's Component Scanner 3695 | -7/Scraptown | Discovered exit to Factory (range 5) 3743 | -7/Scraptown | Visited Derelict Rescue Squad 3762 | -7/Scraptown | Visited Abandonware Association 3772 | -7/Scraptown | Learned abandonware demo "SHUTEYE.EXE" 3772 | -7/Scraptown | Learned abandonware demo "MELTYB.EXE" 3786 | -7/Scraptown | Visited Cartography Club 3847 | -7/Scraptown | Learned location of Lower Caves (-6) 3847 | -7/Scraptown | Learned location of Upper Caves (-4) 3847 | -7/Scraptown | Learned location of Warlord (-5) 3847 | -7/Scraptown | Learned 12 Materials zone layouts 3847 | -7/Scraptown | Learned 16 Materials zone layouts 3847 | -7/Scraptown | Learned 12 Research zone layouts 3847 | -7/Scraptown | Learned 4 Storage zone layouts 3847 | -7/Scraptown | Learned 12 Upper Caves zone layouts 3847 | -7/Scraptown | Learned 16 Upper Caves zone layouts 3847 | -7/Scraptown | Learned 24 Upper Caves zone layouts 3847 | -7/Scraptown | Learned Materials emergency access door positions 3847 | -7/Scraptown | Learned location of 2 exits from Factory 3847 | -7/Scraptown | Learned location of 1 exit from Lower Caves 3847 | -7/Scraptown | Learned location of 3 exits from Lower Caves 3869 | -7/Scraptown | Found Deep Structural Scanner 4223 | -7/Scraptown | Attached CPS modules to S-27 Virus. 4235 | -7/Scraptown | Attached CPS modules to S-27 Virus. 4793 | -7/Scraptown | Attacked by Scraptown defenders 4813 | -7/Scraptown | Identified Companion Sword 4937 | -7/Scraptown | Crushed by falling debris 4968 | -7/Scraptown | Lost 3 parts (1p1n1u) 5051 | -7/Scraptown | Found Scrap Suit 5078 | -7/Scraptown | Core integrity fell below 20% 5081 | -7/Scraptown | Destroyed by Optimus with Helical Railgun Last Messages --------------- about it!" LOCAL NARROWCAST: You don't have permission to be in here, but that's okay because it's just doing its job as a honeypot for traitors, TRAITOR! Bolt penetrates Wall. Companion Sword: "Why must I be so near this... thing." System corrupted: Component data lost. Penetrated by Slug. Slug penetrates Wall. Penetrated by Slug. Slug penetrates Wall. Destroyed Imp. Phase Shifter. Hover Unit destroyed. Beam Rifle destroyed. Bolt penetrates Super Scrap Suits. Penetrated by Slug. Bolt penetrates Super Scrap Suits. Penetrated by Slug. Map ----- +----------------------------------------------------+ | ######## ####???????????????????????????????? | | """""""# ##########?????????????????????????? | | "&&& "# #"""""""""#????????????????????????? | | "# #"""""""""#????????????????????????? | | " ""# #"""""""""#????????????????????????? | | "# #"""""""""#????????????????????????? | | " ""# #""" """#????????????????????????? | | & "# #""" """#????????????????????????? | | " ""# #"!"* """#????????????????????????? | | # #""" """"#????????????????????????? | | # #""" """#????????????????????????? | | # # "#????????????????????????? | | ## ##### ## ########????????????????????????? | | ## ##### ## ###############?????????????????? | | "" """"" "" "##############?????????????????? | | "# ############?????????????????? | | "##;###########?????????????????? | | "## ####?????????????????? | | "## ####?????????????????? | | ####?????????????????? | | """""""" "## ####?????????????????? | | """""""" "## ####?????????????????? | | ######"" "########;#####?????????????????? | | ######"" "#########;#;####???????????????? | | ######"" "## #"""""# ###???????????????? | | ######"" "## !!!!!# @ ###???????????????? | | ######"" "## ##"3###???????????????? | | #### #"" "## X" ####???????????????? | | ####???????????????? | | "## ####???????????????? | | #### #"" "## !! !! ####???????????????? | | ######"" "## #"""""#"""###???????????????? | | ######"" "#############"##???????????????? | | ######"" "############ ###???????????????? | | ######"" "########### ####???????????????? | | ######"" "##" """""""#####???????????????? | | """""""" "##" " "" ##???????????????????? | | """""""" " " "" "#????????????????????? | | "##" "#????????????????????? | | "##" """"#????????????????????? | | "##" "##???????????????????? | | ##" " "" ##???????????????????? | | #" " "" ""##??????????????????? | | """" """""" ##" """"""# ##?????????????????? | | #### ###### ########### ###????????????????? | | "# #####??###### ##???????????????? | | "" ""## #####?####### ###??????????????? | | ]" "&## ############# ####?????????????? | | "" ""## ############ #######???????????? | | "# ############ #######???????????? | +----------------------------------------------------+ Best States ------------- Heat Dissipation 53 Energy Generation 14 Energy Capacity 250 Matter Stores 300 Matter Capacity 300 Sight Range 18 Robot Scan Range 14 Terrain Scan Range 16 Terrain Scan Density 10 Evasion (%) 55 Item Schematics ----------------- None Robot Schematics ------------------ None Fabricated ------------ Nothing Repaired ---------- Nothing Studied --------- None Alien Tech Used ----------------- None Achievements -------------- None Challenges ------------ None Game ------ Seed BurstGuidedProtection Manual? 0 Play Time 01:19:43 Cumulative 75.5 hours Start 2025.12.02 @ 00:46:54 End 2025.12.02 @ 02:10:49 Sessions 1 Manual Loads 0 Difficulty Rogue Special Mode None Game No. 58 Rogue 58 Adventurer 0 Explorer 0 Win Type - Total 0 Types 0/0/0/0/0/0/0/0/0/0 Lore% 39 Gallery% 39 Achievement% 24 Wizard Run 0 Options --------- Layout 1 ASCII 0 Keyboard 0 Movement Mouse Keybinds 0 Fullscreen 1 Font 32/SmallcapsGlow Map View 50x40 Zoom Use 0% Tactical HUD 0 Map Filters NONE Filters NONE Steam 1 RUN: d113b048-99f6-4009-88de-33224076ce7f